[Event "Kwalificatie NJK B Groningen"]
[Site "Hoogkerk, Netherlands"]
[Date "2023.02.19"]
[Round "5.4"]
[White "Damen, Josephine"]
[Black "Snijders, Take"]
[Result "1/2-1/2"]
[TimeControl "55 min. + 10 sec./zet"]
[WhiteElo "1600"]
[BlackElo "1848"]

1. e4 {[%clk 00:55:18]} {[%emt 00:00:02]} c6 {[%clk 00:55:16]} {[%emt
00:00:05]} 2. d4 {[%clk 00:55:23]} {[%emt 00:00:04]} d5 {[%clk 00:55:23]}
{[%emt 00:00:03]} 3. exd5 {[%clk 00:55:27]} {[%emt 00:00:06]} cxd5 {[%clk
00:55:30]} {[%emt 00:00:03]} 4. c4 {[%clk 00:55:30]} {[%emt 00:00:07]} Nf6
{[%clk 00:55:32]} {[%emt 00:00:08]} 5. Nc3 {[%clk 00:55:25]} {[%emt 00:00:15]}
g6 {[%clk 00:55:29]} {[%emt 00:00:13]} 6. Nf3 {[%clk 00:54:18]} {[%emt
00:01:17]} Bg7 {[%clk 00:55:27]} {[%emt 00:00:13]} 7. c5 {[%clk 00:50:13]}
{[%emt 00:04:15]} O-O {[%clk 00:53:47]} {[%emt 00:01:49]} 8. Be2 {[%clk
00:47:37]} {[%emt 00:02:46]} Nc6 {[%clk 00:52:06]} {[%emt 00:01:52]} 9. a3
{[%clk 00:46:52]} {[%emt 00:00:55]} Re8 {[%clk 00:46:35]} {[%emt 00:05:40]} 10.
O-O {[%clk 00:38:12]} {[%emt 00:08:50]} Ne4 {[%clk 00:42:15]} {[%emt 00:04:30]}
11. Be3 {[%clk 00:34:50]} {[%emt 00:03:32]} e5 {[%clk 00:30:32]} {[%emt
00:11:53]} 12. Bb5 {[%clk 00:23:01]} {[%emt 00:11:59]} Nxc3 {[%clk 00:22:17]}
{[%emt 00:08:25]} 13. bxc3 {[%clk 00:22:56]} {[%emt 00:00:14]} e4 {[%clk
00:19:57]} {[%emt 00:02:31]} 14. Nd2 {[%clk 00:22:22]} {[%emt 00:00:44]} f5
{[%clk 00:18:44]} {[%emt 00:01:23]} 15. Bf4 {[%clk 00:14:36]} {[%emt 00:07:56]}
g5 {[%clk 00:16:05]} {[%emt 00:02:49]} 16. Bd6 {[%clk 00:13:44]} {[%emt
00:01:02]} Bf8 {[%clk 00:15:46]} {[%emt 00:00:29]} 17. Bxf8 {[%clk 00:09:40]}
{[%emt 00:04:14]} Rxf8 {[%clk 00:15:41]} {[%emt 00:00:15]} 18. Rb1 {[%clk
00:07:27]} {[%emt 00:02:23]} g4 {[%clk 00:13:04]} {[%emt 00:02:47]} 19. h3
{[%clk 00:04:21]} {[%emt 00:03:16]} Qh4 {[%clk 00:12:37]} {[%emt 00:00:37]} 20.
hxg4 {[%clk 00:03:13]} {[%emt 00:01:18]} fxg4 {[%emt 00:01:12]} 21. g3 {[%clk
00:01:19]} {[%emt 00:02:01]} Qh3 {[%clk 00:11:21]} {[%emt 00:00:28]} 22. Re1
{[%clk 00:01:20]} {[%emt 00:00:08]} Rf6 {[%clk 00:10:41]} {[%emt 00:00:51]} 23.
Bf1 {[%clk 00:01:20]} {[%emt 00:00:09]} Qh5 {[%clk 00:10:19]} {[%emt 00:00:31]}
24. Qb3 {[%clk 00:00:55]} {[%emt 00:00:36]} Kh8 {[%clk 00:08:21]} {[%emt
00:02:08]} 25. Bg2 {[%clk 00:00:57]} {[%emt 00:00:07]} Rf7 {[%clk 00:06:12]}
{[%emt 00:02:19]} 26. Nf1 {[%clk 00:00:18]} {[%emt 00:00:49]} Be6 {[%clk
00:05:57]} {[%emt 00:00:25]} 27. Ne3 {[%clk 00:00:26]} {[%emt 00:00:02]} Raf8
{[%clk 00:05:00]} {[%emt 00:01:08]} 28. Re2 {[%clk 00:00:25]} {[%emt 00:00:12]}
Qg6 {[%clk 00:03:24]} {[%emt 00:01:46]} 29. Kf1 {[%clk 00:00:25]} {[%emt
00:00:09]} Ne7 {[%emt 00:00:25]} 30. Ke1 {[%clk 00:00:31]} {[%emt 00:00:03]}
Nf5 {[%clk 00:02:37]} {[%emt 00:00:43]} 31. Kd2 {[%clk 00:00:32]} {[%emt
00:00:09]} Nxe3 {[%clk 00:02:21]} {[%emt 00:00:26]} 32. fxe3 {[%clk 00:00:41]}
{[%emt 00:00:01]} Rf2 {[%clk 00:00:47]} {[%emt 00:01:44]} 33. Qxb7 {[%clk
00:00:46]} {[%emt 00:00:05]} Qf6 {[%clk 00:00:47]} {[%emt 00:00:11]} 34. Rh1
{[%clk 00:00:32]} {[%emt 00:00:23]} Bg8 {[%clk 00:00:41]} {[%emt 00:00:16]} 35.
Rh2 {[%clk 00:00:21]} {[%emt 00:00:21]} Rxe2+ {[%clk 00:00:46]} {[%emt
00:00:04]} 36. Kxe2 {[%clk 00:00:30]} Qf2+ {[%clk 00:00:56]} 37. Kd1 {[%clk
00:00:39]} {[%emt 00:00:01]} Qxg3 {[%clk 00:00:53]} {[%emt 00:00:12]} 38. Qe7
{[%clk 00:00:36]} {[%emt 00:00:14]} Qxh2 {[%clk 00:00:36]} {[%emt 00:00:27]} 39.
Qxf8 {[%clk 00:00:43]} {[%emt 00:00:02]} Qg1+ {[%clk 00:00:26]} {[%emt
00:00:20]} 40. Bf1 {[%clk 00:00:52]} h5 {[%clk 00:00:23]} {[%emt 00:00:13]} 41.
Qh6+ {[%clk 00:00:59]} {[%emt 00:00:03]} Bh7 {[%clk 00:00:32]} {[%emt
00:00:01]} 42. Qf8+ {[%clk 00:00:53]} {[%emt 00:00:17]} Bg8 {[%clk 00:00:42]}
{[%emt 00:00:01]} 43. Qf6+ {[%clk 00:01:01]} Kh7 {[%clk 00:00:51]} {[%emt
00:00:01]} 44. c6 {[%clk 00:01:08]} {[%emt 00:00:04]} Be6 {[%clk 00:00:21]}
{[%emt 00:00:39]} 45. Ke2 {[%clk 00:00:47]} {[%emt 00:00:30]} Qh2+ {[%clk
00:00:26]} {[%emt 00:00:06]} 46. Kd1 {[%clk 00:00:36]} {[%emt 00:00:19]} Qg1
{[%clk 00:00:17]} {[%emt 00:00:21]} 47. Qe7+ {[%clk 00:00:43]} {[%emt
00:00:02]} Kh8 {[%clk 00:00:22]} {[%emt 00:00:06]} 48. Qe8+ {[%clk 00:00:37]}
{[%emt 00:00:15]} Kg7 {[%emt 00:00:11]} 49. Qe7+ {[%clk 00:00:36]} {[%emt
00:00:11]} Kh8 {[%clk 00:00:23]} {[%emt 00:00:09]} 50. Qf6+ {[%clk 00:00:43]}
{[%emt 00:00:03]} Kh7 {[%clk 00:00:31]} {[%emt 00:00:02]} 51. c7 {[%clk
00:00:44]} {[%emt 00:00:09]} Bc8 {[%clk 00:00:28]} {[%emt 00:00:13]} 52. Qf7+
{[%clk 00:00:32]} {[%emt 00:00:21]} Kh6 {[%clk 00:00:35]} {[%emt 00:00:05]} 53.
Qf4+ {[%clk 00:00:39]} {[%emt 00:00:02]} Kg6 {[%clk 00:00:33]} {[%emt
00:00:13]} 54. Ke1 {[%clk 00:00:37]} {[%emt 00:00:11]} g3 {[%clk 00:00:27]}
{[%emt 00:00:16]} 55. Qd6+ {[%clk 00:00:30]} {[%emt 00:00:17]} Kh7 {[%clk
00:00:25]} {[%emt 00:00:12]} 56. Qe7+ {[%clk 00:00:26]} {[%emt 00:00:14]} Kh6
{[%clk 00:00:27]} {[%emt 00:01:18]} 57. Qf8+ {[%clk 00:02:41]} {[%emt
00:00:02]} Kg5 {[%clk 00:00:33]} {[%emt 00:00:02]} 58. Qxc8 {[%clk 00:02:49]}
{[%emt 00:00:04]} Qf2+ {[%clk 00:00:42]} 59. Kd1 {[%clk 00:02:55]} {[%emt
00:00:04]} Qxf1+ {[%clk 00:00:49]} {[%emt 00:00:03]} 60. Kc2 {[%clk 00:03:03]}
{[%emt 00:00:02]} Qd3+ {[%clk 00:00:30]} {[%emt 00:00:28]} 61. Kb2 {[%clk
00:02:40]} {[%emt 00:00:34]} Qe2+ {[%clk 00:00:37]} {[%emt 00:00:04]} 62. Kb3
{[%clk 00:02:39]} {[%emt 00:00:11]} Qc4+ {[%clk 00:00:45]} {[%emt 00:00:01]} 63.
Kb2 {[%clk 00:02:17]} {[%emt 00:00:32]} Qe2+ {[%clk 00:00:43]} {[%emt
00:00:12]} 64. Kb3 {[%clk 00:02:24]} {[%emt 00:00:03]} Qc4+ {[%clk 00:00:22]}
{[%emt 00:00:18]} 1/2-1/2

[Event "Kwalificatie NJK B Groningen"]
[Site "Hoogkerk, Netherlands"]
[Date "2023.02.19"]
[Round "5.5"]
[White "Fallaux, Storm"]
[Black "Lopes, Samuel"]
[Result "1-0"]
[TimeControl "55 min. + 10 sec./zet"]
[WhiteElo "1643"]
[BlackElo "1826"]

1. e4 {[%clk 00:55:17]} {[%emt 00:00:13]} c5 {[%clk 00:55:16]} 2. Nf3 {[%clk
00:55:23]} {[%emt 00:00:09]} d6 {[%clk 00:55:22]} 3. d4 {[%clk 00:55:30]}
{[%emt 00:00:05]} cxd4 {[%clk 00:55:27]} {[%emt 00:00:10]} 4. Nxd4 {[%clk
00:55:39]} Nf6 {[%clk 00:55:28]} {[%emt 00:00:03]} 5. Nc3 {[%clk 00:55:45]}
{[%emt 00:00:22]} Nc6 {[%clk 00:55:28]} 6. g3 {[%clk 00:55:39]} {[%emt
00:00:12]} g6 {[%clk 00:55:20]} {[%emt 00:00:09]} 7. Bg2 {[%clk 00:55:39]}
{[%emt 00:00:12]} Bd7 {[%clk 00:53:57]} {[%emt 00:01:41]} 8. O-O {[%clk
00:55:24]} {[%emt 00:00:13]} Bg7 {[%clk 00:53:47]} {[%emt 00:00:39]} 9. Be3
{[%clk 00:55:09]} {[%emt 00:00:10]} O-O {[%clk 00:48:04]} {[%emt 00:05:56]} 10.
Qd2 {[%clk 00:52:06]} {[%emt 00:03:06]} Ng4 {[%clk 00:44:29]} {[%emt 00:03:45]}
11. Nxc6 {[%clk 00:49:47]} {[%emt 00:02:28]} Bxc6 {[%clk 00:42:59]} {[%emt
00:02:01]} 12. Bd4 {[%clk 00:46:48]} {[%emt 00:03:26]} Nf6 {[%clk 00:37:56]}
{[%emt 00:04:50]} 13. Rad1 {[%clk 00:43:51]} {[%emt 00:02:52]} Qc7 {[%clk
00:36:50]} {[%emt 00:01:43]} 14. Nd5 {[%clk 00:40:33]} {[%emt 00:03:02]} Bxd5
{[%clk 00:34:59]} {[%emt 00:02:18]} 15. exd5 {[%clk 00:40:25]} {[%emt
00:00:08]} a6 {[%clk 00:30:57]} {[%emt 00:04:19]} 16. Rfe1 {[%clk 00:38:45]}
{[%emt 00:02:40]} Rfe8 {[%clk 00:30:17]} 17. b3 {[%clk 00:36:59]} {[%emt
00:01:42]} Rad8 {[%clk 00:29:54]} {[%emt 00:00:54]} 18. c4 {[%clk 00:35:38]}
{[%emt 00:02:23]} e5 {[%clk 00:27:27]} {[%emt 00:01:43]} 19. dxe6 {[%clk
00:34:48]} {[%emt 00:00:39]} fxe6 {[%clk 00:27:21]} {[%emt 00:00:28]} 20. Qb4
{[%clk 00:34:04]} {[%emt 00:00:43]} Rd7 {[%clk 00:21:24]} {[%emt 00:06:07]} 21.
Bh3 {[%clk 00:33:30]} {[%emt 00:01:19]} Kf7 {[%clk 00:19:06]} {[%emt 00:02:23]}
22. Bb6 {[%clk 00:28:53]} {[%emt 00:04:41]} Qb8 {[%clk 00:14:19]} {[%emt
00:04:32]} 23. Re2 {[%clk 00:26:17]} {[%emt 00:02:46]} d5 {[%clk 00:13:05]}
{[%emt 00:01:47]} 24. Rde1 {[%clk 00:23:20]} {[%emt 00:02:46]} Rd6 {[%clk
00:06:52]} {[%emt 00:06:38]} 25. Bd4 {[%clk 00:18:19]} {[%emt 00:05:34]} Nh5
{[%clk 00:02:15]} {[%emt 00:04:27]} 26. cxd5 {[%clk 00:17:22]} {[%emt
00:02:43]} Bxd4 {[%clk 00:00:45]} 27. Qxd4 {[%clk 00:17:19]} Nf6 {[%clk
00:00:15]} {[%emt 00:00:52]} 28. Bxe6+ {[%clk 00:16:24]} {[%emt 00:01:18]} Kg7
{[%clk 00:00:24]} 29. g4 {[%clk 00:15:58]} {[%emt 00:00:08]} h6 {[%clk
00:00:31]} {[%emt 00:00:05]} 30. h4 {[%clk 00:15:30]} {[%emt 00:00:56]} g5
{[%clk 00:00:40]} 31. hxg5 {[%clk 00:15:15]} {[%emt 00:00:37]} hxg5 {[%clk
00:00:49]} 32. Qe5 {[%clk 00:15:10]} {[%emt 00:00:34]} Rxd5 {[%clk 00:00:16]}
{[%emt 00:00:19]} 33. Qxb8 {[%clk 00:15:01]} Rxb8 {[%clk 00:00:23]} 34. Bxd5
{[%clk 00:14:58]} {[%emt 00:00:41]} Nxd5 {[%clk 00:00:32]} 35. Re5 {[%clk
00:14:53]} {[%emt 00:00:12]} Nf4 {[%clk 00:00:35]} 36. Rxg5+ {[%clk 00:14:56]}
Kh6 {[%clk 00:00:34]} {[%emt 00:00:58]} 37. Rf5 {[%clk 00:14:42]} Nh3+ {[%clk
00:00:26]} 38. Kg2 {[%clk 00:14:43]} Ng5 {[%clk 00:00:32]} 39. f4 {[%clk
00:14:30]} {[%emt 00:00:17]} Nh7 {[%clk 00:00:39]} {[%emt 00:01:04]} 40. Rh5+
{[%clk 00:14:16]} Kg6 {[%clk 00:00:46]} 41. f5+ {[%clk 00:14:13]} Kg7 {[%clk
00:00:43]} 42. Re7+ {[%clk 00:14:18]} Kf6 {[%clk 00:00:50]} {[%emt 00:00:06]}
43. Rexh7 {[%clk 00:14:15]} {[%emt 00:00:09]} Rg8 {[%clk 00:00:55]} {[%emt
00:00:15]} 44. Kf3 {[%clk 00:14:17]} Ke5 {[%clk 00:01:03]} {[%emt 00:00:08]} 45.
f6+ {[%clk 00:14:13]} {[%emt 00:00:08]} Kxf6 {[%clk 00:01:07]} {[%emt
00:00:04]} 46. Kf4 {[%clk 00:14:19]} {[%emt 00:00:24]} Ke6 {[%clk 00:01:14]} 47.
Rxb7 {[%clk 00:13:58]} {[%emt 00:00:12]} Kd6 {[%clk 00:01:21]} {[%emt
00:00:28]} 48. Rb6+ {[%clk 00:14:00]} Kc7 {[%clk 00:01:29]} 49. Rxa6 {[%clk
00:14:04]} Kb7 {[%clk 00:01:38]} 50. Rf6 {[%clk 00:14:06]} {[%emt 00:00:27]}
Kc7 {[%clk 00:01:45]} 51. Rh7+ {[%clk 00:14:09]} Kb8 {[%clk 00:01:53]} 52. a4
{[%clk 00:14:09]} Ka8 {[%clk 00:02:00]} {[%emt 00:00:04]} 53. a5 {[%clk
00:14:16]} {[%emt 00:00:04]} Kb8 {[%clk 00:02:08]} 54. b4 {[%clk 00:14:21]}
{[%emt 00:00:25]} Ka8 {[%clk 00:02:16]} 55. a6 {[%clk 00:14:27]} Kb8 {[%clk
00:02:25]} 56. b5 {[%clk 00:14:32]} Ka8 {[%clk 00:02:33]} 57. b6 {[%clk
00:14:29]} {[%emt 00:00:06]} Kb8 {[%clk 00:02:42]} 58. Rhf7 {[%clk 00:14:31]}
{[%emt 00:00:13]} Ka8 {[%clk 00:02:43]} {[%emt 00:00:04]} 59. Rf8+ {[%clk
00:14:38]} {[%emt 00:00:12]} Rxf8 {[%clk 00:02:50]} 60. Rxf8# {[%clk 00:14:43]}
1-0

[Event "Kwalificatie NJK B Groningen"]
[Site "Hoogkerk, Netherlands"]
[Date "2023.02.19"]
[Round "5.6"]
[White "Blom, Rens"]
[Black "Roorda, Cas"]
[Result "0-1"]
[TimeControl "55 min. + 10 sec./zet"]
[WhiteElo "1758"]
[BlackElo "1654"]

1. c4 {[%clk 00:55:18]} {[%emt 00:00:06]} e5 {[%clk 00:54:46]} {[%emt
00:01:13]} 2. Nc3 {[%clk 00:55:22]} Nf6 {[%clk 00:54:50]} 3. Nf3 {[%clk
00:55:28]} Nc6 {[%clk 00:54:54]} 4. a3 {[%clk 00:55:33]} d5 {[%clk 00:51:30]}
{[%emt 00:03:24]} 5. cxd5 {[%clk 00:54:49]} {[%emt 00:01:03]} Nxd5 {[%clk
00:51:31]} 6. Qc2 {[%clk 00:54:57]} Be6 {[%clk 00:49:31]} {[%emt 00:02:06]} 7.
e3 {[%clk 00:54:15]} {[%emt 00:00:53]} Be7 {[%clk 00:47:56]} {[%emt 00:01:45]}
8. Bd3 {[%clk 00:42:21]} {[%emt 00:12:35]} Qd7 {[%clk 00:45:04]} {[%emt
00:02:51]} 9. Bb5 {[%clk 00:31:41]} {[%emt 00:10:30]} f6 {[%clk 00:38:07]}
{[%emt 00:07:20]} 10. d4 {[%clk 00:27:06]} {[%emt 00:04:33]} Nxc3 {[%clk
00:33:09]} {[%emt 00:05:08]} 11. bxc3 {[%clk 00:24:47]} {[%emt 00:02:39]} a6
{[%clk 00:32:43]} {[%emt 00:00:23]} 12. Bd3 {[%clk 00:20:21]} {[%emt 00:04:54]}
f5 {[%clk 00:17:42]} {[%emt 00:14:56]} 13. e4 {[%clk 00:14:20]} {[%emt
00:06:16]} fxe4 {[%clk 00:16:47]} {[%emt 00:01:04]} 14. Bxe4 {[%clk 00:14:24]}
exd4 {[%clk 00:13:31]} {[%emt 00:03:37]} 15. cxd4 {[%clk 00:11:44]} {[%emt
00:02:38]} Bd5 {[%clk 00:11:26]} {[%emt 00:02:23]} 16. O-O {[%clk 00:10:13]}
{[%emt 00:01:33]} Bxe4 {[%clk 00:09:55]} {[%emt 00:01:43]} 17. Qxe4 {[%clk
00:10:22]} O-O {[%clk 00:09:48]} {[%emt 00:00:22]} 18. Bb2 {[%clk 00:08:07]}
{[%emt 00:02:22]} Qf5 {[%clk 00:09:07]} {[%emt 00:00:48]} 19. Rfe1 {[%clk
00:07:05]} {[%emt 00:01:13]} Rae8 {[%clk 00:08:46]} {[%emt 00:00:37]} 20. d5
{[%clk 00:05:48]} {[%emt 00:01:33]} Nb8 {[%clk 00:07:24]} {[%emt 00:01:19]} 21.
Qc4 {[%clk 00:05:23]} {[%emt 00:00:39]} Bd6 {[%clk 00:07:03]} {[%emt 00:00:29]}
22. Qd4 {[%clk 00:04:18]} {[%emt 00:01:32]} Qg6 {[%clk 00:05:33]} {[%emt
00:01:22]} 23. Ne5 {[%clk 00:02:37]} {[%emt 00:02:08]} Qf6 {[%clk 00:05:09]}
{[%emt 00:00:16]} 24. Re2 {[%clk 00:01:40]} {[%emt 00:01:08]} Bxe5 {[%clk
00:05:11]} {[%emt 00:00:07]} 25. Rxe5 {[%clk 00:01:48]} {[%emt 00:00:14]} Rxe5
{[%clk 00:05:20]} 26. f4 {[%clk 00:00:53]} {[%emt 00:00:57]} Ree8 {[%clk
00:04:15]} {[%emt 00:01:15]} 27. Qd2 {[%clk 00:00:20]} {[%emt 00:00:59]} Qxf4
{[%clk 00:04:03]} {[%emt 00:00:15]} 28. Qd3 {[%clk 00:00:14]} {[%emt 00:00:23]}
Qf2+ {[%clk 00:04:03]} 0-1

[Event "Kwalificatie NJK B Groningen"]
[Site "Hoogkerk, Netherlands"]
[Date "2023.02.19"]
[Round "5.7"]
[White "Knippenberg, Hidde"]
[Black "Blok, Xaveer"]
[Result "1-0"]
[TimeControl "55 min. + 10 sec./zet"]
[WhiteElo "1721"]
[BlackElo "1581"]

1. b3 {[%clk 00:55:18]} {[%emt 00:00:43]} e5 {[%clk 00:54:41]} 2. Bb2 {[%clk
00:55:27]} {[%emt 00:00:03]} Nc6 {[%clk 00:54:37]} {[%emt 00:00:10]} 3. e3
{[%clk 00:55:36]} {[%emt 00:00:23]} d5 {[%clk 00:53:07]} {[%emt 00:01:39]} 4.
Bb5 {[%clk 00:55:43]} {[%emt 00:00:34]} Nge7 {[%clk 00:52:56]} 5. Bxe5 {[%clk
00:55:49]} a6 {[%clk 00:52:24]} {[%emt 00:00:19]} 6. Bxc6+ {[%clk 00:55:56]}
{[%emt 00:00:05]} Nxc6 {[%clk 00:52:08]} {[%emt 00:00:53]} 7. Bb2 {[%clk
00:56:05]} Bf5 {[%clk 00:51:02]} {[%emt 00:00:43]} 8. Nf3 {[%clk 00:55:58]}
{[%emt 00:00:36]} Qd7 {[%clk 00:49:41]} {[%emt 00:01:20]} 9. d3 {[%clk
00:54:29]} {[%emt 00:02:10]} O-O-O {[%clk 00:45:18]} {[%emt 00:04:27]} 10. Nbd2
{[%clk 00:54:06]} {[%emt 00:00:04]} f6 {[%clk 00:43:34]} {[%emt 00:02:06]} 11.
Qe2 {[%clk 00:53:51]} {[%emt 00:00:20]} Bc5 {[%clk 00:42:47]} {[%emt 00:00:58]}
12. O-O-O {[%clk 00:52:58]} {[%emt 00:00:56]} Rhe8 {[%clk 00:41:30]} {[%emt
00:01:23]} 13. h3 {[%clk 00:52:39]} {[%emt 00:00:29]} d4 {[%clk 00:39:22]}
{[%emt 00:02:48]} 14. e4 {[%clk 00:52:24]} {[%emt 00:00:09]} Bg6 {[%clk
00:38:52]} {[%emt 00:00:53]} 15. g4 {[%clk 00:52:13]} {[%emt 00:00:23]} Qe7
{[%clk 00:33:39]} {[%emt 00:04:54]} 16. Nh4 {[%clk 00:48:05]} {[%emt 00:04:19]}
Bf7 {[%clk 00:28:01]} {[%emt 00:05:46]} 17. f4 {[%clk 00:46:23]} {[%emt
00:02:42]} g6 {[%clk 00:26:04]} {[%emt 00:01:35]} 18. Rdf1 {[%clk 00:41:40]}
{[%emt 00:05:02]} Ba3 {[%clk 00:22:28]} {[%emt 00:03:31]} 19. Nhf3 {[%clk
00:40:57]} {[%emt 00:01:14]} Bxb2+ {[%clk 00:20:26]} {[%emt 00:01:40]} 20. Kxb2
{[%clk 00:41:04]} {[%emt 00:01:30]} Qb4 {[%clk 00:17:16]} {[%emt 00:01:55]} 21.
Nb1 {[%clk 00:40:49]} {[%emt 00:00:28]} f5 {[%clk 00:14:00]} {[%emt 00:04:30]}
22. e5 {[%clk 00:40:04]} Rd5 {[%clk 00:11:53]} {[%emt 00:02:33]} 23. Qd2 {[%clk
00:38:50]} {[%emt 00:00:54]} Qb6 {[%clk 00:10:38]} {[%emt 00:02:24]} 24. Rc1
{[%clk 00:34:42]} {[%emt 00:03:19]} a5 {[%clk 00:08:14]} {[%emt 00:02:45]} 25.
c4 {[%clk 00:32:09]} {[%emt 00:02:33]} dxc3+ {[%clk 00:07:37]} {[%emt
00:00:46]} 26. Nxc3 {[%clk 00:31:17]} {[%emt 00:01:47]} Rd7 {[%clk 00:06:49]}
{[%emt 00:00:33]} 27. Na4 {[%clk 00:30:31]} {[%emt 00:01:09]} Qb5 {[%clk
00:06:03]} {[%emt 00:01:24]} 28. Rhd1 {[%clk 00:30:03]} Nd4 {[%clk 00:05:42]}
{[%emt 00:00:09]} 29. Nxd4 {[%clk 00:29:50]} {[%emt 00:00:22]} Rxd4 {[%clk
00:05:44]} {[%emt 00:00:35]} 30. Qc3 {[%clk 00:29:26]} {[%emt 00:00:20]} Qd7
{[%clk 00:04:47]} {[%emt 00:01:07]} 31. Nc5 {[%clk 00:28:56]} {[%emt 00:01:08]}
Qd8 {[%clk 00:04:02]} {[%emt 00:00:48]} 32. Qxa5 {[%clk 00:29:02]} c6 {[%clk
00:03:28]} {[%emt 00:00:34]} 33. Qa8+ {[%clk 00:28:58]} {[%emt 00:00:23]} Kc7
{[%clk 00:03:35]} 34. Qxb7# {[%clk 00:29:02]} 1-0

[Event "Kwalificatie NJK B Groningen"]
[Site "Hoogkerk, Netherlands"]
[Date "2023.02.19"]
[Round "5.8"]
[White "Ambrona Navarro, Himar"]
[Black "Westerhof, Fleur"]
[Result "0-1"]
[TimeControl "55 min. + 10 sec./zet"]
[WhiteElo "1847"]
[BlackElo "1623"]

1. d4 {[%clk 00:55:16]} d5 {[%clk 00:55:13]} {[%emt 00:00:13]} 2. c4 {[%clk
00:55:17]} {[%emt 00:00:14]} e6 {[%clk 00:55:14]} 3. Nc3 {[%clk 00:55:18]}
{[%emt 00:00:35]} Nf6 {[%clk 00:55:08]} 4. cxd5 {[%clk 00:55:13]} {[%emt
00:00:13]} exd5 {[%clk 00:55:06]} {[%emt 00:00:25]} 5. Bg5 {[%clk 00:55:13]}
Be7 {[%clk 00:54:07]} {[%emt 00:00:55]} 6. e3 {[%clk 00:54:34]} {[%emt
00:00:50]} O-O {[%clk 00:52:25]} {[%emt 00:02:13]} 7. Bd3 {[%clk 00:53:44]}
{[%emt 00:00:39]} c6 {[%clk 00:50:50]} {[%emt 00:01:54]} 8. h3 {[%clk
00:52:50]} {[%emt 00:01:23]} Re8 {[%clk 00:49:01]} {[%emt 00:01:30]} 9. Nf3
{[%clk 00:51:28]} {[%emt 00:01:59]} Nbd7 {[%clk 00:48:19]} {[%emt 00:00:50]} 10.
O-O {[%clk 00:50:17]} {[%emt 00:00:56]} Nf8 {[%clk 00:46:50]} {[%emt 00:01:39]}
11. Qc2 {[%clk 00:48:57]} {[%emt 00:01:30]} g6 {[%clk 00:44:20]} {[%emt
00:02:40]} 12. Bf4 {[%clk 00:47:21]} {[%emt 00:02:50]} Ne6 {[%clk 00:43:04]}
{[%emt 00:00:22]} 13. Bh2 {[%clk 00:47:18]} {[%emt 00:00:29]} Ng7 {[%clk
00:42:46]} {[%emt 00:00:54]} 14. Rfe1 {[%clk 00:42:38]} {[%emt 00:04:45]} Bd6
{[%clk 00:35:23]} {[%emt 00:06:56]} 15. Bxd6 {[%clk 00:39:45]} {[%emt
00:03:38]} Qxd6 {[%clk 00:35:17]} {[%emt 00:00:10]} 16. a3 {[%clk 00:39:31]}
Bf5 {[%clk 00:33:34]} {[%emt 00:02:24]} 17. e4 {[%clk 00:35:24]} {[%emt
00:04:23]} dxe4 {[%clk 00:32:32]} {[%emt 00:00:57]} 18. Nxe4 {[%clk 00:35:25]}
Nxe4 {[%clk 00:30:35]} {[%emt 00:01:46]} 19. Bxe4 {[%clk 00:35:25]} {[%emt
00:00:15]} Bxe4 {[%clk 00:29:38]} {[%emt 00:01:17]} 20. Rxe4 {[%clk 00:35:15]}
{[%emt 00:01:09]} Rxe4 {[%clk 00:29:24]} 21. Qxe4 {[%clk 00:35:18]} Re8 {[%clk
00:28:47]} {[%emt 00:00:15]} 22. Qd3 {[%clk 00:33:25]} {[%emt 00:02:05]} Ne6
{[%clk 00:23:58]} {[%emt 00:05:30]} 23. Qb3 {[%clk 00:30:35]} {[%emt 00:03:06]}
Re7 {[%clk 00:19:31]} {[%emt 00:04:05]} 24. Rd1 {[%clk 00:28:49]} {[%emt
00:02:06]} Rd7 {[%clk 00:18:43]} {[%emt 00:00:41]} 25. Rd2 {[%clk 00:26:49]}
{[%emt 00:02:09]} Nf4 {[%clk 00:16:50]} {[%emt 00:03:24]} 26. Ne5 {[%clk
00:23:45]} {[%emt 00:02:41]} Re7 {[%clk 00:16:24]} 27. Qg3 {[%clk 00:22:10]}
{[%emt 00:01:52]} Rxe5 {[%clk 00:14:10]} {[%emt 00:02:05]} 28. dxe5 {[%clk
00:16:22]} {[%emt 00:05:58]} Qxd2 {[%clk 00:14:11]} {[%emt 00:00:46]} 29. Qh4
{[%clk 00:16:09]} Ne2+ {[%clk 00:13:51]} {[%emt 00:00:36]} 30. Kh2 {[%clk
00:14:51]} {[%emt 00:01:41]} Qf4+ {[%clk 00:13:35]} {[%emt 00:00:10]} 31. Qxf4
{[%clk 00:13:37]} {[%emt 00:01:08]} Nxf4 {[%clk 00:13:37]} {[%emt 00:00:17]} 32.
Kg3 {[%clk 00:12:55]} {[%emt 00:00:51]} Nd3 {[%clk 00:11:48]} {[%emt 00:02:54]}
33. Kf3 {[%clk 00:12:15]} Nxe5+ {[%clk 00:11:41]} {[%emt 00:00:10]} 34. Ke4
{[%clk 00:12:08]} {[%emt 00:00:48]} Nc4 {[%clk 00:10:54]} {[%emt 00:01:43]} 35.
b4 {[%clk 00:11:50]} Nxa3 {[%clk 00:10:34]} 36. Kd4 {[%clk 00:11:47]} Kf8
{[%clk 00:09:49]} {[%emt 00:00:56]} 37. Kc5 {[%clk 00:11:11]} {[%emt 00:00:53]}
Ke7 {[%clk 00:09:37]} {[%emt 00:00:05]} 38. f4 {[%clk 00:11:11]} {[%emt
00:00:07]} Nb5 {[%clk 00:08:48]} {[%emt 00:01:44]} 39. g4 {[%clk 00:10:59]} h6
{[%clk 00:08:34]} {[%emt 00:00:12]} 40. Kc4 {[%clk 00:10:02]} {[%emt 00:00:56]}
Ke6 {[%clk 00:07:47]} {[%emt 00:00:55]} 41. Kc5 {[%clk 00:10:01]} {[%emt
00:00:16]} h5 {[%clk 00:07:29]} {[%emt 00:01:11]} 42. Kc4 {[%clk 00:09:55]}
hxg4 {[%clk 00:07:05]} {[%emt 00:00:20]} 43. hxg4 {[%clk 00:09:55]} f6 {[%clk
00:06:53]} {[%emt 00:00:14]} 44. Kc5 {[%clk 00:09:37]} {[%emt 00:00:41]} g5
{[%clk 00:06:41]} {[%emt 00:00:09]} 45. fxg5 {[%clk 00:08:59]} {[%emt
00:00:55]} fxg5 {[%clk 00:06:38]} {[%emt 00:00:09]} 46. Kc4 {[%clk 00:08:54]}
{[%emt 00:00:44]} Ke5 {[%clk 00:06:16]} {[%emt 00:00:04]} 47. Kd3 {[%clk
00:08:14]} {[%emt 00:01:44]} Kf4 {[%clk 00:05:54]} 48. Ke2 {[%clk 00:07:44]}
{[%emt 00:00:15]} Kxg4 {[%clk 00:05:38]} {[%emt 00:00:25]} 49. Kf1 {[%clk
00:07:36]} {[%emt 00:02:08]} Kf3 {[%clk 00:04:57]} 50. Kg1 {[%clk 00:07:32]} g4
{[%clk 00:04:44]} 0-1